[Event "CZE-ch Youth G16 2022"]
[Site "Luhacovice"]
[Date "2022.03.13"]
[Round "2.4"]
[White "Nagyova, Daniela"]
[Black "Hosova, Sandra"]
[Result "1/2-1/2"]
[ECO "B35"]
[WhiteElo "1623"]
[BlackElo "1545"]
[Annotator "NA"]
[PlyCount "124"]
[EventDate "2022.03.12"]
[EventType "swiss"]
[EventCountry "CZE"]
[SourceTitle "playchess.com"]
[Source "ChessBase"]
[SourceQuality "1"]
[TimeControl "40/5400+30:1800+30"]

1. e4 {[%emt 0:00:03]} c5 {[%emt 0:00:11]} 2. Nf3 {[%emt 0:00:09]} Nc6 {[%emt 0:00:09]} 3. d4 {[%emt 0:00:30]} cxd4 {[%emt 0:00:30]} 4. Nxd4 {[%emt 0:00:30]} g6 {[%emt 0:00:30]} 5. Nc3 {[%emt 0:00:09]} Bg7 {[%emt 0:00:21]} 6. Be3 {[%emt 0:00:36]} Nf6 {[%emt 0:00:55]} 7. Bc4 {[%emt 0:00:45]} d6 {[%emt 0:01:42]} 8. f3 {[%emt 0:02:06]} O-O {[%emt 0:01:16]} 9. Bb3 {[%emt 0:01:37]} Bd7 {[%emt 0:01:45]} 10. Qd2 {[%emt 0:01:48]} a5 {[%emt 0:12:21]} 11. a4 {[%emt 0:06:55]} Rc8 {[%emt 0:05:41]} 12. O-O-O {[%emt 0:05:17]} Qe8 {[%emt 0:23:37]} 13. Ndb5 {[%emt 0:12:41]} Qd8 {[%emt 0:09:42]} 14. Bh6 {[%emt 0:11:10]} Nb4 {[%emt 0:06:33]} 15. Bxg7 {[%emt 0:04:51]} Kxg7 {[%emt 0:00:19]} 16. g4 {[%emt 0:02:51]} Na6 {[%emt 0:02:30]} 17. e5 {[%emt 0:08:16]} Ne8 {[%emt 0:05:07]} 18. exd6 {[%emt 0:02:27]} e6 {[%emt 0:02:18]} 19. h4 {[%emt 0:06:02]} Nc5 {[%emt 0:03:09]} 20. Ba2 {[%emt 0:03:58]} f6 {[%emt 0:06:23]} 21. g5 {[%emt 0:09:08]} fxg5 {[%emt 0:04:00]} 22. Na7 {[%emt 0:04:58]} Ra8 {[%emt 0:04:11]} 23. Qd4+ {[%emt 0:01:12]} Kg8 {[%emt 0:03:05]} 24. Qxc5 {[%emt 0:01:12]} b6 {[%emt 0:00:10]} 25. Qe5 {[%emt 0:01:40]} Rxa7 {[%emt 0:00:49]} 26. Bxe6+ {[%emt 0:02:11]} Bxe6 {[%emt 0:00:05]} 27. Qxe6+ {[%emt 0:00:03]} Rff7 {[%emt 0:01:04]} 28. h5 {[%emt 0:05:01]} Ng7 {[%emt 0:01:00]} 29. Qd5 {[%emt 0:01:15]} Nxh5 {[%emt 0:01:01]} 30. Ne4 {[%emt 0:01:39]} h6 {[%emt 0:01:13]} 31. d7 {[%emt 0:02:51]} Raxd7 {[%emt 0:00:57]} 32. Nd6 {[%emt 0:00:25]} Qf6 {[%emt 0:01:49]} 33. Kb1 {[%emt 0:01:19]} Qxf3 {[%emt 0:01:10]} 34. Qe6 {[%emt 0:00:50]} Kh7 {[%emt 0:01:16]} 35. Rdf1 {[%emt 0:00:53]} Qxf1+ {[%emt 0:00:34]} 36. Rxf1 {[%emt 0:00:01]} Rxf1+ {[%emt 0:00:01]} 37. Ka2 {[%emt 0:00:03]} Rg7 {[%emt 0:00:32]} 38. Ne8 {[%emt 0:00:51]} Rb7 {[%emt 0:00:54]} 39. Qc6 {[%emt 0:00:48]} Re7 {[%emt 0:00:29]} 40. Nc7 {[%emt 0:00:35]} Rf6 {[%emt 0:00:22]} 41. Qc3 {[%emt 0:30:34]} Ref7 {[%emt 0:30:45]} 42. Nd5 {[%emt 0:00:00]} Rd6 {[%emt 0:00:00]} 43. Qc4 {[%emt 0:00:00]} Rfd7 {[%emt 0:00:00]} 44. Nc7 {[%emt 0:00:00]} Ng7 {[%emt 0:00:00]} 45. Nb5 {[%emt 0:00:00]} Rf6 {[%emt 0:00:00]} 46. Nc3 {[%emt 0:00:00]} Rf4 {[%emt 0:00:00]} 47. Qc6 {[%emt 0:00:00]} Rd2 {[%emt 0:00:00]} 48. Nd5 {[%emt 0:00:00]} Rxd5 {[%emt 0:00:00]} 49. Qxd5 {[%emt 0:00:00]} Rxa4+ {[%emt 0:00:00]} 50. Kb3 {[%emt 0:00:00]} Rb4+ {[%emt 0:00:00]} 51. Ka3 {[%emt 0:00:00]} g4 {[%emt 0:00:00]} 52. c4 {[%emt 0:00:00]} h5 {[%emt 0:00:00]} 53. b3 {[%emt 0:00:00]} Nf5 {[%emt 0:01:18]} 54. Qd7+ {[%emt 0:00:00]} Kh6 {[%emt 0:00:32]} 55. Qd2+ {[%emt 0:00:21]} Kg7 {[%emt 0:01:32]} 56. Qd7+ {[%emt 0:01:08]} Kf6 {[%emt 0:00:27]} 57. Qd8+ {[%emt 0:00:44]} Ke5 {[%emt 0:00:55]} 58. Qe8+ {[%emt 0:00:33]} Kf4 {[%emt 0:02:15]} 59. Qxg6 {[%emt 0:00:19]} h4 {[%emt 0:00:21]} 60. Qf7 {[%emt 0:04:15]} g3 {[%emt 0:00:30]} 61. Qc7+ {[%emt 0:00:30]} Kf3 {[%emt 0:01:02]} 62. Qe5 Kg4 1/2-1/2

[Event "CZE-ch Youth G16 2022"]
[Site "Luhacovice"]
[Date "2022.03.13"]
[Round "2.6"]
[White "Sehnoutkova, Laura"]
[Black "Mullerova, Karina Nela"]
[Result "1-0"]
[ECO "A80"]
[WhiteElo "1126"]
[BlackElo "1250"]
[Annotator "NA"]
[PlyCount "83"]
[EventDate "2022.03.12"]
[EventType "swiss"]
[EventCountry "CZE"]
[SourceTitle "playchess.com"]
[Source "ChessBase"]
[SourceQuality "1"]
[TimeControl "40/5400+30:1800+30"]

1. d4 {[%emt 0:00:03]} f5 {[%emt 0:00:38]} 2. Bf4 {[%emt 0:00:23]} d5 {[%emt 0:00:21]} 3. e3 {[%emt 0:01:19]} Nf6 {[%emt 0:00:44]} 4. Nf3 {[%emt 0:01:42]} e6 {[%emt 0:03:35]} 5. Nbd2 {[%emt 0:03:29]} a6 {[%emt 0:05:39]} 6. Be2 {[%emt 0:06:24]} c5 {[%emt 0:03:04]} 7. c4 {[%emt 0:05:30]} Nc6 {[%emt 0:02:10]} 8. a3 {[%emt 0:03:26]} cxd4 {[%emt 0:07:46]} 9. Nxd4 {[%emt 0:04:14]} Nxd4 {[%emt 0:00:47]} 10. exd4 {[%emt 0:00:43]} dxc4 {[%emt 0:03:59]} 11. Nxc4 {[%emt 0:01:14]} b5 {[%emt 0:00:51]} 12. Ne5 {[%emt 0:04:05]} Bb7 {[%emt 0:04:32]} 13. O-O {[%emt 0:02:58]} Nd5 {[%emt 0:10:47]} 14. Bf3 {[%emt 0:06:31]} Rb8 {[%emt 0:10:59]} 15. Bxd5 {[%emt 0:13:36]} Qxd5 {[%emt 0:03:26]} 16. Nf3 {[%emt 0:02:21]} Bd6 {[%emt 0:04:33]} 17. Bxd6 {[%emt 0:03:34]} Qxd6 {[%emt 0:00:34]} 18. Qd3 {[%emt 0:01:57]} Qd5 {[%emt 0:03:17]} 19. Rfe1 {[%emt 0:01:43]} O-O {[%emt 0:01:30]} 20. Re5 {[%emt 0:03:19]} Qd6 {[%emt 0:04:23]} 21. Rae1 {[%emt 0:02:04]} Be4 {[%emt 0:07:06]} 22. Qe3 {[%emt 0:03:44]} Rf6 {[%emt 0:06:41]} 23. Ng5 {[%emt 0:03:08]} Rbf8 {[%emt 0:06:07]} 24. f3 {[%emt 0:02:06]} Bd5 {[%emt 0:00:38]} 25. Nxe6 {[%emt 0:03:22]} Bxe6 {[%emt 0:00:06]} 26. Rxe6 {[%emt 0:00:08]} Rxe6 {[%emt 0:00:04]} 27. Qxe6+ {[%emt 0:00:05]} Qxe6 {[%emt 0:00:04]} 28. Rxe6 {[%emt 0:00:16]} Rd8 {[%emt 0:00:04]} 29. Rxa6 {[%emt 0:00:21]} Rxd4 {[%emt 0:00:05]} 30. b4 {[%emt 0:01:20]} f4 {[%emt 0:00:53]} 31. g3 {[%emt 0:00:46]} g5 {[%emt 0:04:49]} 32. gxf4 {[%emt 0:01:53]} Rxf4 {[%emt 0:00:08]} 33. Kg2 {[%emt 0:01:19]} Kg7 {[%emt 0:01:13]} 34. Ra5 {[%emt 0:00:24]} g4 {[%emt 0:02:09]} 35. fxg4 {[%emt 0:00:27]} Rxg4+ {[%emt 0:00:06]} 36. Kf3 {[%emt 0:00:26]} Rg5 {[%emt 0:01:23]} 37. a4 {[%emt 0:01:37]} Rf5+ {[%emt 0:01:58]} 38. Kg4 {[%emt 0:01:51]} Rf2 {[%emt 0:01:01]} 39. Kg3 {[%emt 0:00:45]} Ra2 {[%emt 0:00:23]} 40. axb5 {[%emt 0:00:08]} Rxa5 {[%emt 0:01:01]} 41. bxa5 {[%emt 0:30:06]} h5 {[%emt 0:30:09]} 42. a6 {[%emt 0:00:09]} 1-0

[Event "CZE-ch Youth G16 2022"]
[Site "Luhacovice"]
[Date "2022.03.13"]
[Round "2.8"]
[White "Sargsyan, Anna B."]
[Black "Smajzrova, Dominika"]
[Result "0-1"]
[ECO "C43"]
[WhiteElo "1602"]
[BlackElo "1203"]
[Annotator "NA"]
[PlyCount "94"]
[EventDate "2022.03.12"]
[EventType "swiss"]
[EventCountry "CZE"]
[SourceTitle "playchess.com"]
[Source "ChessBase"]
[SourceQuality "1"]
[TimeControl "40/5400+30:1800+30"]

1. e4 {[%emt 0:00:03]} e5 {[%emt 0:00:07]} 2. Nf3 {[%emt 0:00:15]} Nf6 {[%emt 0:00:25]} 3. d4 {[%emt 0:01:27]} exd4 {[%emt 0:07:09]} 4. Qxd4 {[%emt 0:01:14]} Nc6 {[%emt 0:00:45]} 5. Qe3 {[%emt 0:04:57]} Nb4 {[%emt 0:05:13]} 6. Bd3 {[%emt 0:01:20]} Be7 {[%emt 0:00:50]} 7. O-O {[%emt 0:01:05]} O-O {[%emt 0:09:01]} 8. a3 {[%emt 0:01:09]} Nxd3 {[%emt 0:01:25]} 9. Qxd3 {[%emt 0:00:43]} Re8 {[%emt 0:01:48]} 10. Re1 {[%emt 0:00:42]} Bc5 {[%emt 0:03:55]} 11. e5 {[%emt 0:05:02]} Ng4 {[%emt 0:02:32]} 12. Be3 {[%emt 0:06:18]} Nxe5 {[%emt 0:05:54]} 13. Qd5 {[%emt 0:03:05]} Nxf3+ {[%emt 0:01:30]} 14. Qxf3 {[%emt 0:00:27]} Qg5 {[%emt 0:05:43]} 15. Nc3 {[%emt 0:02:19]} Bxe3 {[%emt 0:00:46]} 16. Rxe3 {[%emt 0:01:17]} Rxe3 {[%emt 0:00:15]} 17. Qxe3 {[%emt 0:00:36]} Qxe3 {[%emt 0:00:26]} 18. fxe3 {[%emt 0:00:13]} d6 {[%emt 0:00:08]} 19. Nb5 {[%emt 0:01:09]} Bf5 {[%emt 0:01:25]} 20. c3 {[%emt 0:00:52]} Re8 {[%emt 0:01:58]} 21. Re1 {[%emt 0:00:47]} Re7 {[%emt 0:00:48]} 22. Nxa7 {[%emt 0:00:34]} Re5 {[%emt 0:00:08]} 23. a4 {[%emt 0:01:58]} Bd7 {[%emt 0:00:59]} 24. b3 {[%emt 0:00:51]} Ra5 {[%emt 0:00:30]} 25. Nb5 {[%emt 0:00:44]} Bxb5 {[%emt 0:00:11]} 26. axb5 {[%emt 0:00:17]} Rxb5 {[%emt 0:00:06]} 27. Ra1 {[%emt 0:00:37]} Kf8 {[%emt 0:00:46]} 28. Rb1 {[%emt 0:01:49]} Rd5 {[%emt 0:00:50]} 29. e4 {[%emt 0:01:18]} Rd3 {[%emt 0:00:13]} 30. Rc1 {[%emt 0:00:22]} Re3 {[%emt 0:00:14]} 31. b4 {[%emt 0:01:18]} Rxe4 {[%emt 0:00:06]} 32. c4 {[%emt 0:01:44]} b6 {[%emt 0:00:30]} 33. c5 {[%emt 0:01:17]} Rxb4 {[%emt 0:00:31]} 34. cxd6 {[%emt 0:00:32]} cxd6 {[%emt 0:00:13]} 35. Rc6 {[%emt 0:00:40]} Ke7 {[%emt 0:00:16]} 36. Rc7+ {[%emt 0:00:24]} Ke6 {[%emt 0:00:13]} 37. Rc8 {[%emt 0:00:42]} d5 {[%emt 0:02:29]} 38. Rh8 {[%emt 0:00:47]} h6 {[%emt 0:00:29]} 39. Re8+ {[%emt 0:00:40]} Kd7 {[%emt 0:01:13]} 40. Re5 {[%emt 0:00:53]} d4 {[%emt 0:00:42]} 41. Re4 {[%emt 0:30:26]} Kd6 {[%emt 0:30:13]} 42. Kf2 {[%emt 0:00:21]} Rb2+ {[%emt 0:00:58]} 43. Kf3 {[%emt 0:01:37]} Rb3+ {[%emt 0:00:34]} 44. Kf2 {[%emt 0:01:18]} d3 {[%emt 0:00:50]} 45. Re3 {[%emt 0:00:38]} Rb2+ {[%emt 0:00:09]} 46. Kf3 {[%emt 0:00:43]} d2 {[%emt 0:00:17]} 47. Rd3+ {[%emt 0:00:34]} Ke5 0-1

[Event "CZE-ch Youth G16 2022"]
[Site "Luhacovice"]
[Date "2022.03.14"]
[Round "3.1"]
[White "Voriskova, Anna"]
[Black "Nespora, Tatana"]
[Result "1-0"]
[ECO "E62"]
[WhiteElo "1812"]
[BlackElo "1452"]
[Annotator "NA"]
[PlyCount "24"]
[EventDate "2022.03.12"]
[EventType "swiss"]
[EventCountry "CZE"]
[SourceTitle "playchess.com"]
[Source "ChessBase"]
[SourceQuality "1"]
[TimeControl "40/5400+30:1800+30"]

1. d4 Nf6 2. c4 g6 3. Nf3 Bg7 4. g3 O-O 5. Bg2 d6 6. Nc3 c6 7. O-O Qa5 8. Qc2 Qh5 9. b4 Bh3 10. Rd1 h6 11. Bb2 Nbd7 12. Bh1 Ng4 1-0

[Event "CZE-ch Youth G16 2022"]
[Site "Luhacovice"]
[Date "2022.03.14"]
[Round "3.2"]
[White "Hosova, Sandra"]
[Black "Fizerova, Lucie"]
[Result "1-0"]
[ECO "B20"]
[WhiteElo "1545"]
[BlackElo "1804"]
[Annotator "NA"]
[PlyCount "53"]
[EventDate "2022.03.12"]
[EventType "swiss"]
[EventCountry "CZE"]
[SourceTitle "playchess.com"]
[Source "ChessBase"]
[SourceQuality "1"]
[TimeControl "40/5400+30:1800+30"]

1. e4 {[%emt 0:00:08]} c5 {[%emt 0:00:24]} 2. c4 {[%emt 0:00:49]} g6 {[%emt 0:01:16]} 3. Nc3 {[%emt 0:00:46]} Bg7 {[%emt 0:00:29]} 4. g3 {[%emt 0:00:31]} Nc6 {[%emt 0:01:44]} 5. Nge2 {[%emt 0:00:42]} Nf6 {[%emt 0:02:24]} 6. Bg2 {[%emt 0:01:45]} O-O {[%emt 0:00:48]} 7. O-O {[%emt 0:00:50]} Ne8 {[%emt 0:01:17]} 8. f4 {[%emt 0:05:35]} d6 {[%emt 0:03:20]} 9. d3 $11 {[%emt 0:04:02]} Nc7 {[%emt 0:01:19]} 10. Be3 {[%emt 0:05:32]} Ne6 {[%emt 0:01:53]} 11. Qd2 {[%emt 0:10:13]} Ned4 {[%emt 0:01:30]} 12. h3 {[%emt 0:07:37]} h5 {[%emt 0:06:36]} 13. Rf2 {[%emt 0:04:20]} Bd7 {[%emt 0:02:49]} 14. Raf1 {[%emt 0:03:49]} Qc8 {[%emt 0:00:46]} 15. Kh2 {[%emt 0:02:07]} a6 {[%emt 0:02:28]} 16. Nd5 {[%emt 0:04:56]} Qd8 {[%emt 0:08:40]} 17. f5 {[%emt 0:07:29]} Nxe2 {[%emt 0:06:01]} 18. Qxe2 {[%emt 0:17:25]} Ne5 {[%emt 0:13:42]} 19. Qd2 {[%emt 0:05:45]} f6 {[%emt 0:02:22]} 20. Nf4 {[%emt 0:02:32]} Qe8 {[%emt 0:02:52]} 21. fxg6 {[%emt 0:01:27]} Nxg6 {[%emt 0:01:21]} 22. Nxh5 {[%emt 0:00:54]} Bh8 {[%emt 0:08:53]} 23. Nf4 {[%emt 0:03:55]} Nxf4 {[%emt 0:08:34]} 24. gxf4 {[%emt 0:00:19]} Qh5 {[%emt 0:00:49]} 25. f5 {[%emt 0:00:47]} Kf7 {[%emt 0:01:19]} 26. Bf3 {[%emt 0:01:27]} Qh7 {[%emt 0:00:52]} 27. Bh6 {[%emt 0:00:35]} 1-0

[Event "CZE-ch Youth G16 2022"]
[Site "Luhacovice"]
[Date "2022.03.14"]
[Round "3.3"]
[White "Markova, Karolina"]
[Black "Nagyova, Daniela"]
[Result "1/2-1/2"]
[ECO "C55"]
[WhiteElo "1589"]
[BlackElo "1623"]
[Annotator "NA"]
[PlyCount "100"]
[EventDate "2022.03.12"]
[EventType "swiss"]
[EventCountry "CZE"]
[SourceTitle "playchess.com"]
[Source "ChessBase"]
[SourceQuality "1"]
[TimeControl "40/5400+30:1800+30"]

1. e4 {[%emt 0:00:20]} e5 {[%emt 0:00:07]} 2. Nf3 {[%emt 0:00:28]} Nc6 {[%emt 0:00:15]} 3. d4 {[%emt 0:00:30]} exd4 {[%emt 0:00:17]} 4. Bc4 {[%emt 0:00:00]} Nf6 {[%emt 0:00:31]} 5. e5 {[%emt 0:00:00]} Ng4 {[%emt 0:01:22]} 6. Qe2 {[%emt 0:00:08]} Qe7 {[%emt 0:00:27]} 7. Bf4 {[%emt 0:00:23]} d6 {[%emt 0:00:27]} 8. exd6 {[%emt 0:00:24]} Qxe2+ {[%emt 0:00:10]} 9. Bxe2 {[%emt 0:00:04]} Bxd6 {[%emt 0:00:16]} 10. Bxd6 {[%emt 0:00:19]} cxd6 {[%emt 0:00:10]} 11. Na3 {[%emt 0:00:58]} d3 {[%emt 0:01:03]} 12. Bxd3 {[%emt 0:00:46]} Be6 {[%emt 0:01:29]} 13. Nb5 {[%emt 0:08:53]} O-O-O {[%emt 0:02:24]} 14. O-O {[%emt 0:01:17]} a6 {[%emt 0:04:59]} 15. Nbd4 {[%emt 0:01:22]} Nge5 {[%emt 0:04:21]} 16. Be2 {[%emt 0:03:52]} Kc7 {[%emt 0:06:40]} 17. Nxe6+ {[%emt 0:04:58]} fxe6 {[%emt 0:00:16]} 18. Ng5 {[%emt 0:01:04]} Nd4 {[%emt 0:09:38]} 19. Bd3 {[%emt 0:06:41]} Nxd3 {[%emt 0:07:06]} 20. cxd3 {[%emt 0:00:30]} Rde8 {[%emt 0:03:43]} 21. Rac1+ {[%emt 0:06:39]} Kd7 {[%emt 0:02:30]} 22. Rfe1 {[%emt 0:02:14]} h6 {[%emt 0:04:39]} 23. Ne4 {[%emt 0:03:04]} Rc8 {[%emt 0:03:01]} 24. Nc3 {[%emt 0:06:44]} Rc6 {[%emt 0:07:57]} 25. Re4 {[%emt 0:05:18]} Nb5 {[%emt 0:04:10]} 26. Rce1 {[%emt 0:08:43]} Nxc3 {[%emt 0:04:45]} 27. bxc3 {[%emt 0:00:06]} d5 {[%emt 0:01:22]} 28. Rg4 {[%emt 0:03:22]} g5 {[%emt 0:02:39]} 29. c4 {[%emt 0:00:56]} dxc4 {[%emt 0:04:25]} 30. dxc4 {[%emt 0:00:10]} Rhc8 {[%emt 0:03:12]} 31. Rge4 {[%emt 0:00:56]} Ke7 {[%emt 0:08:18]} 32. g3 {[%emt 0:00:31]} Rb6 {[%emt 0:01:26]} 33. h4 {[%emt 0:09:10]} Rcc6 {[%emt 0:03:29]} 34. hxg5 {[%emt 0:01:13]} hxg5 {[%emt 0:00:04]} 35. Kg2 {[%emt 0:13:34]} Rb2 {[%emt 0:03:03]} 36. a3 {[%emt 0:01:22]} Kf6 {[%emt 0:04:23]} 37. R1e3 {[%emt 0:02:19]} Rc2 {[%emt 0:01:33]} 38. Rb3 {[%emt 0:00:47]} R2xc4 {[%emt 0:00:56]} 39. Rxc4 {[%emt 0:00:52]} Rxc4 {[%emt 0:00:01]} 40. Rxb7 {[%emt 0:01:13]} Rc3 {[%emt 0:00:33]} 41. Rb8 {[%emt 0:32:47]} Rxa3 {[%emt 0:03:32]} 42. Kh3 {[%emt 0:00:00]} Ra4 {[%emt 0:02:22]} 43. f3 {[%emt 0:00:00]} a5 {[%emt 0:02:35]} 44. Ra8 {[%emt 0:00:00]} Kg6 {[%emt 0:11:16]} 45. Rg8+ {[%emt 0:00:00]} Kf6 {[%emt 0:00:46]} 46. Ra8 {[%emt 0:00:00]} Kf5 {[%emt 0:09:52]} 47. Rf8+ {[%emt 0:00:00]} Kg6 {[%emt 0:01:22]} 48. Rg8+ {[%emt 0:00:00]} Kf6 {[%emt 0:00:05]} 49. Ra8 {[%emt 0:00:00]} Kf7 {[%emt 0:00:48]} 50. Ra7+ {[%emt 0:00:00]} Kf6 {[%emt 0:00:32]} 1/2-1/2

[Event "CZE-ch Youth G16 2022"]
[Site "Luhacovice"]
[Date "2022.03.14"]
[Round "3.5"]
[White "Macova, Marketa"]
[Black "Sulcova, Tereza Radmila"]
[Result "0-1"]
[ECO "A40"]
[WhiteElo "1224"]
[BlackElo "1555"]
[Annotator "NA"]
[PlyCount "118"]
[EventDate "2022.03.12"]
[EventType "swiss"]
[EventCountry "CZE"]
[SourceTitle "playchess.com"]
[Source "ChessBase"]
[SourceQuality "1"]
[TimeControl "40/5400+30:1800+30"]

1. d4 a6 2. Bf4 b5 3. Nf3 Bb7 4. Nc3 e6 5. e4 {[%emt 0:02:15]} b4 {[%emt 0:02:29]} 6. Ne2 {[%emt 0:06:12]} Bxe4 {[%emt 0:02:36]} 7. Ng3 {[%emt 0:01:17]} Bb7 {[%emt 0:01:02]} 8. Bd3 {[%emt 0:06:36]} Nf6 {[%emt 0:04:21]} 9. O-O {[%emt 0:06:26]} Be7 {[%emt 0:01:05]} 10. Re1 {[%emt 0:02:23]} d6 {[%emt 0:03:20]} 11. c4 {[%emt 0:08:40]} bxc3 {[%emt 0:07:38]} 12. bxc3 {[%emt 0:00:40]} Nd5 {[%emt 0:01:33]} 13. Qd2 {[%emt 0:05:02]} Nd7 {[%emt 0:07:09]} 14. Nh5 {[%emt 0:03:25]} Nxf4 {[%emt 0:03:41]} 15. Qxf4 {[%emt 0:07:05]} Bf6 {[%emt 0:02:45]} 16. g4 {[%emt 0:12:13]} O-O {[%emt 0:10:01]} 17. Rab1 {[%emt 0:12:04]} Qc8 {[%emt 0:06:03]} 18. Ng5 {[%emt 0:04:23]} e5 {[%emt 0:06:26]} 19. Qf5 {[%emt 0:03:48]} g6 {[%emt 0:01:51]} 20. Nxf6+ {[%emt 0:01:29]} Nxf6 {[%emt 0:00:06]} 21. Qxc8 {[%emt 0:02:07]} Bxc8 {[%emt 0:00:12]} 22. h3 {[%emt 0:00:45]} exd4 {[%emt 0:01:03]} 23. cxd4 {[%emt 0:00:17]} h6 {[%emt 0:00:43]} 24. Ne4 {[%emt 0:01:32]} Nd5 {[%emt 0:00:40]} 25. Bc4 {[%emt 0:01:42]} Be6 {[%emt 0:01:00]} 26. Rb7 {[%emt 0:01:22]} Nf4 {[%emt 0:01:53]} 27. Bxe6 {[%emt 0:02:46]} Nxe6 {[%emt 0:01:58]} 28. Rd1 {[%emt 0:02:24]} Rfb8 {[%emt 0:02:38]} 29. Rdb1 {[%emt 0:01:50]} Rxb7 {[%emt 0:01:11]} 30. Rxb7 {[%emt 0:00:07]} Rc8 {[%emt 0:00:49]} 31. Rb4 {[%emt 0:01:42]} Kg7 {[%emt 0:07:33]} 32. Kg2 {[%emt 0:01:38]} Nf4+ {[%emt 0:01:10]} 33. Kg3 {[%emt 0:00:19]} Nd5 {[%emt 0:00:18]} 34. Ra4 {[%emt 0:00:34]} f5 {[%emt 0:01:52]} 35. Nd2 {[%emt 0:01:17]} Ra8 {[%emt 0:00:18]} 36. Nc4 {[%emt 0:01:34]} Kf6 {[%emt 0:00:16]} 37. h4 {[%emt 0:00:44]} Nc3 {[%emt 0:01:17]} 38. Ra3 {[%emt 0:01:06]} Ne2+ {[%emt 0:00:08]} 39. Kf3 {[%emt 0:00:46]} Nxd4+ {[%emt 0:00:10]} 40. Kg3 {[%emt 0:00:13]} fxg4 {[%emt 0:02:23]} 41. Kxg4 {[%emt 0:30:12]} h5+ {[%emt 0:30:19]} 42. Kg3 {[%emt 0:00:11]} Nf5+ {[%emt 0:00:24]} 43. Kh3 {[%emt 0:00:13]} d5 44. Nd2 {[%emt 0:00:49]} Ke6 {[%emt 0:03:15]} 45. Nf3 {[%emt 0:00:36]} c5 {[%emt 0:00:35]} 46. Rc3 {[%emt 0:01:15]} Kd6 {[%emt 0:00:56]} 47. Ng5 {[%emt 0:00:53]} Kc6 {[%emt 0:01:14]} 48. Ne6 {[%emt 0:00:46]} c4 {[%emt 0:00:36]} 49. Nf4 {[%emt 0:00:14]} Kc5 {[%emt 0:02:08]} 50. Nxg6 {[%emt 0:00:13]} Rg8 {[%emt 0:00:38]} 51. Nf4 {[%emt 0:00:27]} Rg4 {[%emt 0:00:21]} 52. Ng2 {[%emt 0:00:52]} Kd4 {[%emt 0:00:53]} 53. Rf3 {[%emt 0:00:27]} Ke4 {[%emt 0:00:09]} 54. Rc3 {[%emt 0:01:00]} Ke5 {[%emt 0:01:33]} 55. f4+ {[%emt 0:00:38]} Kd4 {[%emt 0:00:23]} 56. Rf3 {[%emt 0:00:12]} Rxg2 {[%emt 0:01:13]} 57. Kxg2 {[%emt 0:00:09]} Nxh4+ {[%emt 0:00:05]} 58. Kg3 {[%emt 0:00:08]} Nxf3 {[%emt 0:00:06]} 59. Kxf3 {[%emt 0:00:08]} Kd3 {[%emt 0:00:08]} 0-1

[Event "CZE-ch Youth G16 2022"]
[Site "Luhacovice"]
[Date "2022.03.14"]
[Round "3.6"]
[White "Smajzrova, Dominika"]
[Black "Seda, Michaela"]
[Result "1-0"]
[ECO "C65"]
[WhiteElo "1203"]
[BlackElo "1364"]
[Annotator "NA"]
[PlyCount "77"]
[EventDate "2022.03.12"]
[EventType "swiss"]
[EventCountry "CZE"]
[SourceTitle "playchess.com"]
[Source "ChessBase"]
[SourceQuality "1"]
[TimeControl "40/5400+30:1800+30"]

1. e4 e5 2. Nf3 Nc6 3. Bb5 Nf6 4. d3 d6 {[%emt 0:00:40]} 5. h3 {[%emt 0:02:28]} Bd7 {[%emt 0:00:52]} 6. c3 {[%emt 0:00:37]} a6 {[%emt 0:00:19]} 7. Ba4 {[%emt 0:00:08]} b5 {[%emt 0:00:21]} 8. Bc2 {[%emt 0:00:09]} d5 {[%emt 0:02:04]} 9. d4 {[%emt 0:10:36]} dxe4 {[%emt 0:04:54]} 10. Nxe5 {[%emt 0:00:49]} Bd6 {[%emt 0:01:26]} 11. Nxd7 {[%emt 0:01:23]} Qxd7 {[%emt 0:00:10]} 12. Bg5 {[%emt 0:00:41]} O-O-O {[%emt 0:02:31]} 13. O-O {[%emt 0:06:12]} Rde8 {[%emt 0:01:07]} 14. Nd2 {[%emt 0:02:11]} Qf5 {[%emt 0:02:06]} 15. Bxf6 {[%emt 0:07:00]} gxf6 {[%emt 0:00:07]} 16. Qg4 {[%emt 0:02:04]} Qxg4 {[%emt 0:00:34]} 17. hxg4 {[%emt 0:00:07]} e3 {[%emt 0:00:08]} 18. fxe3 {[%emt 0:01:12]} Rxe3 {[%emt 0:00:09]} 19. Rxf6 {[%emt 0:00:41]} Re2 {[%emt 0:01:14]} 20. Bf5+ {[%emt 0:00:28]} Kb7 {[%emt 0:00:22]} 21. Ne4 {[%emt 0:00:48]} Rxb2 {[%emt 0:03:53]} 22. Nxd6+ {[%emt 0:00:37]} cxd6 {[%emt 0:00:06]} 23. Rxf7+ {[%emt 0:00:49]} Kb6 {[%emt 0:00:22]} 24. Rd7 {[%emt 0:09:59]} Re8 {[%emt 0:01:28]} 25. Rxh7 {[%emt 0:11:48]} Ree2 {[%emt 0:00:59]} 26. Rh2 {[%emt 0:00:17]} Na5 {[%emt 0:00:11]} 27. Bd3 {[%emt 0:01:24]} Rf2 {[%emt 0:00:38]} 28. g5 {[%emt 0:00:25]} Rf4 {[%emt 0:00:37]} 29. g3 {[%emt 0:01:09]} Rxh2 {[%emt 0:00:59]} 30. Kxh2 {[%emt 0:00:08]} Rf3 {[%emt 0:00:05]} 31. g6 {[%emt 0:00:44]} Rf8 {[%emt 0:00:06]} 32. Rf1 {[%emt 0:00:25]} Rh8+ {[%emt 0:00:16]} 33. Kg2 {[%emt 0:00:13]} Nc4 {[%emt 0:00:43]} 34. Rf7 {[%emt 0:02:38]} Ne3+ {[%emt 0:02:11]} 35. Kf3 {[%emt 0:00:15]} Nd5 {[%emt 0:00:11]} 36. g7 {[%emt 0:00:24]} Re8 {[%emt 0:00:26]} 37. Be4 {[%emt 0:01:37]} Nxc3 {[%emt 0:00:17]} 38. Rf8 {[%emt 0:00:14]} Rxf8+ {[%emt 0:00:11]} 39. gxf8=R {[%emt 0:00:16]} 1-0

[Event "CZE-ch Youth G16 2022"]
[Site "Luhacovice"]
[Date "2022.03.14"]
[Round "3.7"]
[White "Mullerova, Karina Nela"]
[Black "Sargsyan, Anna B."]
[Result "1-0"]
[ECO "C44"]
[WhiteElo "1250"]
[BlackElo "1602"]
[Annotator "NA"]
[PlyCount "57"]
[EventDate "2022.03.12"]
[EventType "swiss"]
[EventCountry "CZE"]
[SourceTitle "playchess.com"]
[Source "ChessBase"]
[SourceQuality "1"]
[TimeControl "40/5400+30:1800+30"]

1. e4 e5 2. Nf3 {[%emt 0:00:09]} Nc6 {[%emt 0:00:22]} 3. d4 {[%emt 0:00:05]} exd4 {[%emt 0:00:39]} 4. Bc4 {[%emt 0:00:45]} Qe7 {[%emt 0:02:43]} 5. Ng5 {[%emt 0:05:34]} Nh6 {[%emt 0:02:23]} 6. Qd3 {[%emt 0:07:46]} Ne5 {[%emt 0:04:00]} 7. Qxd4 {[%emt 0:00:24]} Nxc4 {[%emt 0:01:21]} 8. Qxc4 {[%emt 0:00:50]} Qb4+ {[%emt 0:00:30]} 9. Nd2 {[%emt 0:00:30]} Qxc4 {[%emt 0:00:30]} 10. Nxc4 {[%emt 0:01:10]} b5 {[%emt 0:08:56]} 11. Ne3 {[%emt 0:01:30]} Be7 {[%emt 0:01:04]} 12. Nd5 {[%emt 0:02:55]} Bd8 {[%emt 0:04:40]} 13. Bf4 {[%emt 0:01:38]} d6 {[%emt 0:02:33]} 14. h3 {[%emt 0:03:25]} f5 {[%emt 0:03:46]} 15. O-O-O {[%emt 0:09:31]} O-O {[%emt 0:03:14]} 16. f3 {[%emt 0:04:38]} Bb7 {[%emt 0:03:06]} 17. Ne6 {[%emt 0:01:32]} Rf7 {[%emt 0:04:49]} 18. Bxh6 {[%emt 0:05:23]} Bxd5 {[%emt 0:04:59]} 19. Rxd5 {[%emt 0:02:44]} gxh6 {[%emt 0:02:34]} 20. Rxf5 {[%emt 0:00:28]} Rxf5 {[%emt 0:00:54]} 21. exf5 {[%emt 0:00:13]} Bg5+ {[%emt 0:02:03]} 22. f4 {[%emt 0:00:16]} Bf6 {[%emt 0:02:09]} 23. Nxc7 {[%emt 0:00:54]} Rb8 {[%emt 0:01:20]} 24. Rd1 {[%emt 0:00:37]} Bd8 {[%emt 0:02:10]} 25. Ne6 {[%emt 0:01:03]} Kf7 {[%emt 0:01:38]} 26. Rxd6 {[%emt 0:00:35]} Be7 {[%emt 0:02:37]} 27. Rd7 {[%emt 0:00:28]} Ke8 {[%emt 0:01:16]} 28. Rxa7 {[%emt 0:00:12]} Kf7 {[%emt 0:01:57]} 29. g4 {[%emt 0:00:58]} 1-0